bitfinex-derivatives/quotes_BTCF0:USTF0_20260107
["timestamp","ask_amount","ask_price","bid_price","bid_amount"]
[1767814935336,0.010988,91106.0,91094.0,0.19326497]
[1767814935539,0.010988,91103.0,91093.0,2e-08]
[1767814937135,0.010988,91105.0,91093.0,2e-08]
[1767814937438,0.09252678,91108.0,91093.0,2e-08]
[1767814938140,0.09252678,91107.0,91093.0,2e-08]
[1767814938338,0.10351378,91111.0,91093.0,2e-08]
[1767814940248,0.010988,91102.0,91093.0,2e-08]
[1767814940941,0.010989,91096.0,91093.0,2e-08]
[1767814941242,0.010989,91097.0,91093.0,2e-08]
[1767814941439,0.010987,91111.0,91093.0,0.09916931]
[1767814942230,0.010988,91104.0,91093.0,0.09916931]
[1767814942538,0.0934,91113.0,91096.0,0.11015829]
[1767814942744,0.010987,91108.0,91096.0,0.09916929]
[1767814943044,0.09252678,91119.0,91098.0,0.09916929]
[1767814943235,0.0934,91118.0,91098.0,0.09916929]
[1767814943435,0.010987,91110.0,91098.0,0.09916929]
[1767814944045,0.010987,91108.0,91098.0,0.09916929]
[1767814944539,0.010987,91115.0,91098.0,0.09916929]
[1767814944935,0.09252678,91117.0,91098.0,0.09916929]
[1767814945135,0.09252678,91116.0,91098.0,0.09916929]
[1767814946048,0.09252678,91113.0,91093.0,0.09916931]
[1767814946243,0.010988,91102.0,91093.0,0.09916931]
[1767814946848,0.09252678,91113.0,91093.0,0.09916931]
[1767814947039,0.010988,91103.0,91093.0,0.09916931]
[1767814948141,0.010987,91111.0,91093.0,0.09916931]
[1767814948142,0.010988,91106.0,91095.0,0.19326497]
[1767814950245,0.010988,91104.0,91095.0,0.19326497]
[1767814950841,0.18592678,91118.0,91097.0,0.09916929]
[1767814951046,0.18592678,91118.0,91098.0,0.09916929]
[1767814951647,0.010987,91112.0,91098.0,0.11015729]
[1767814951952,0.010987,91110.0,91098.0,0.11015729]
[1767814952344,0.18592678,91118.0,91097.0,0.09409568]
[1767814952345,0.010988,91106.0,91097.0,0.09409568]
[1767814952548,0.010987,91109.0,91097.0,0.09409568]
[1767814952747,0.010987,91109.0,91097.0,0.1846282]
[1767814952947,0.010987,91112.0,91098.0,0.09053252]
[1767814953149,0.010987,91112.0,91099.0,0.09053252]
[1767814953851,0.010987,91110.0,91099.0,0.09053252]
[1767814954252,0.010987,91108.0,91099.0,0.09053252]
[1767814956754,0.09843694,91139.0,91103.0,0.09053252]
[1767814956960,0.0934,91138.0,91114.0,0.09053252]
[1767814957163,0.0934,91138.0,91119.0,0.09701913]
[1767814957457,0.0934,91138.0,91122.0,0.09053252]
[1767814957844,0.0934,91138.0,91120.0,0.09701913]
[1767814958046,0.0934,91138.0,91120.0,0.18755165]
[1767814958257,0.010984,91135.0,91120.0,0.09701913]
[1767814958559,0.010984,91135.0,91120.0,0.18755165]
[1767814960951,0.010984,91135.0,91121.0,0.09053252]
[1767814962255,0.010984,91135.0,91120.0,0.09701913]
[1767814962442,0.010985,91131.0,91118.0,0.09053252]
[1767814966742,0.010985,91129.0,91118.0,0.09053252]
[1767814967757,0.010984,91132.0,91118.0,0.09053252]
[1767814967957,0.010985,91130.0,91118.0,0.09053252]
[1767814968255,0.010984,91133.0,91118.0,0.09053252]
[1767814968855,0.010985,91131.0,91118.0,0.09053252]
[1767814969060,0.09624248,91137.0,91118.0,0.09053252]
[1767814969358,0.010983,91143.0,91132.0,0.18755165]
[1767814969763,0.32320704,91150.0,91132.0,0.18755165]
[1767814969964,0.010983,91142.0,91132.0,0.18755165]
[1767814970263,0.32320704,91150.0,91132.0,0.09701913]
[1767814970451,0.010984,91139.0,91132.0,0.09701913]
[1767814970651,0.010984,91139.0,91129.0,0.09053252]
[1767814975063,0.010984,91138.0,91127.0,0.09701913]
[1767814975363,0.010984,91138.0,91127.0,0.18755165]
[1767814976266,0.010984,91138.0,91129.0,0.09053252]
[1767814982564,0.010984,91137.0,91129.0,0.09053252]
[1767814983264,0.010984,91137.0,91128.0,0.09701913]
[1767814983464,0.010984,91137.0,91128.0,0.19059044]
[1767814983653,0.010984,91137.0,91129.0,0.09357131]
[1767814989870,0.010984,91139.0,91129.0,0.09357131]
[1767814990670,0.010984,91137.0,91129.0,0.09357131]
[1767814992469,0.010984,91136.0,91129.0,0.09357131]
[1767814993771,0.010984,91138.0,91129.0,0.09357131]
[1767814999881,0.010984,91136.0,91129.0,0.09357131]
[1767815000178,0.010985,91130.0,91115.0,0.010986]
[1767815002079,0.010985,91130.0,91117.0,0.09357131]
[1767815002284,0.010984,91135.0,91123.0,0.09357131]
[1767815002472,0.010984,91135.0,91124.0,0.09357131]
[1767815003486,0.010984,91138.0,91124.0,0.09357131]
[1767815004395,0.09815747,91142.0,91124.0,0.09357131]
[1767815005985,0.09815747,91147.0,91126.0,0.09357131]
[1767815006188,0.010983,91140.0,91127.0,0.0979729]
[1767815006379,0.010983,91140.0,91128.0,0.09357131]
[1767815011689,0.09336,91145.0,91130.0,0.09357131]
[1767815011878,0.010984,91139.0,91125.0,0.09514708]
[1767815012084,0.010984,91136.0,91125.0,0.09514708]
[1767815013388,0.010984,91134.0,91125.0,0.09514708]
[1767815021894,0.010984,91136.0,91125.0,0.09514708]
[1767815024793,0.09094599,91144.0,91125.0,0.09514708]
[1767815025692,0.010984,91133.0,91125.0,0.09514708]
[1767815025997,0.010984,91134.0,91125.0,0.09514708]
[1767815026697,0.010984,91134.0,91126.0,0.09514708]
[1767815029093,0.010984,91136.0,91126.0,0.09514708]
[1767815032101,0.010984,91135.0,91126.0,0.09514708]
[1767815032402,0.010983,91143.0,91127.0,0.19514173]
[1767815032604,0.010984,91135.0,91128.0,0.09514708]
[1767815033199,0.09094599,91150.0,91129.0,0.09514708]
[1767815033407,0.09336,91151.0,91133.0,0.09514708]
[1767815033608,0.09336,91150.0,91134.0,0.09514708]
[1767815034007,0.010984,91140.0,91134.0,0.09514708]
[1767815038998,0.010983,91143.0,91134.0,0.09514708]
[1767815040705,0.010983,91146.0,91135.0,0.09514708]
[1767815040897,0.010983,91144.0,91135.0,0.09514708]
[1767815041802,0.18940047,91151.0,91131.0,0.09074823]
[1767815042010,0.010984,91140.0,91131.0,0.09074823]
[1767815043304,0.010983,91144.0,91123.0,0.09336]
[1767815043603,0.010985,91126.0,91120.0,0.09336]
[1767815043801,0.010985,91126.0,91111.0,0.010987]
[1767815044001,0.010985,91126.0,91112.0,0.20308672]
[1767815044511,0.010985,91129.0,91113.0,0.010987]
[1767815045110,0.010985,91129.0,91114.0,0.10974659]
[1767815045309,0.010985,91127.0,91115.0,0.03134088]
[1767815045602,0.010985,91128.0,91115.0,0.03134088]
[1767815046607,0.010985,91126.0,91115.0,0.03134088]
[1767815047103,0.10416518,91136.0,91115.0,0.03134088]
[1767815047408,0.10416518,91136.0,91107.0,0.10082597]
[1767815047409,0.010986,91123.0,91111.0,0.03225043]
[1767815047598,0.010986,91123.0,91112.0,0.12561043]
[1767815047795,0.010985,91126.0,91113.0,0.03225043]
[1767815051105,0.010985,91129.0,91113.0,0.03225043]
[1767815051311,0.010985,91129.0,91115.0,0.03225373]
[1767815051496,0.09318118,91137.0,91115.0,0.03225373]
[1767815051703,0.010985,91130.0,91115.0,0.03225373]
[1767815052598,0.010985,91128.0,91115.0,0.03225373]
[1767815055319,0.010985,91131.0,91115.0,0.03225373]
[1767815056817,0.010985,91131.0,91117.0,0.03353836]
[1767815058018,0.010985,91128.0,91117.0,0.03353836]
[1767815061015,0.010985,91130.0,91117.0,0.03353836]
[1767815063223,0.09318118,91136.0,91117.0,0.03353836]
[1767815064123,0.010985,91130.0,91117.0,0.03353836]
[1767815064321,0.010985,91129.0,91117.0,0.03353836]
[1767815064721,0.09318118,91135.0,91117.0,0.03353836]
[1767815065731,0.010985,91126.0,91117.0,0.03353836]
[1767815074032,0.010985,91128.0,91117.0,0.03353836]
[1767815075434,0.010985,91131.0,91117.0,0.03353836]
[1767815075634,0.010985,91130.0,91117.0,0.03353836]
[1767815076733,0.010985,91129.0,91117.0,0.03353836]
[1767815078937,0.010985,91132.0,91117.0,0.03353836]
[1767815080330,0.010985,91131.0,91117.0,0.03353836]
[1767815083436,0.09318118,91135.0,91117.0,0.03353836]
[1767815084540,0.09421788,91140.0,91119.0,0.1136098]
[1767815084842,0.010984,91138.0,91124.0,0.03009915]
[1767815085042,0.09336,91144.0,91126.0,0.03009915]
[1767815085742,0.010984,91138.0,91126.0,0.03009915]
[1767815086242,0.010984,91137.0,91126.0,0.03009915]
[1767815089646,0.010984,91135.0,91126.0,0.03009915]
[1767815090447,0.010985,91128.0,91126.0,1.5e-07]
[1767815090645,0.09421788,91141.0,91122.0,0.09336]
[1767815090946,0.010985,91127.0,91122.0,0.09336]
[1767815091349,0.010985,91127.0,91122.0,0.175181]
[1767815092542,0.010984,91138.0,91123.0,0.08185325]
[1767815094155,0.010985,91129.0,91123.0,0.08185325]
[1767815095037,0.010984,91138.0,91123.0,0.08185325]
[1767815097352,0.010985,91129.0,91123.0,0.08185325]
[1767815097553,0.010985,91128.0,91123.0,0.08185325]
[1767815098057,0.010985,91128.0,91122.0,0.09336]
[1767815098250,0.010985,91127.0,91122.0,0.09336]
[1767815099457,0.010985,91126.0,91122.0,0.09336]
[1767815099641,0.010985,91129.0,91122.0,0.09336]
[1767815100242,0.010985,91132.0,91122.0,0.09336]
[1767815100456,0.010984,91133.0,91122.0,0.17472378]
[1767815100659,0.010983,91143.0,91123.0,0.07037978]
[1767815100957,0.010985,91132.0,91123.0,0.07037978]
[1767815101353,0.010985,91132.0,91122.0,0.09336]
[1767815102554,0.010984,91140.0,91122.0,0.09336]
[1767815103056,0.010984,91132.0,91122.0,0.09336]
[1767815103251,0.010984,91134.0,91122.0,0.09336]
[1767815103853,0.1875367,91139.0,91122.0,0.09336]
[1767815104059,0.09376782,91138.0,91122.0,0.09336]
[1767815104952,0.010984,91137.0,91122.0,0.09336]
[1767815107057,0.010984,91139.0,91122.0,0.09336]
[1767815107254,0.18712782,91148.0,91129.0,0.13362332]
[1767815107456,0.09376888,91167.0,91141.0,0.010983]
[1767815107654,0.09376782,91185.0,91161.0,0.0688656]
[1767815107859,0.010979,91182.0,91169.0,0.13362332]
[1767815108057,0.10474582,91185.0,91169.0,0.13362332]
[1767815108355,0.09376782,91185.0,91162.0,0.17318622]
[1767815108560,0.010978,91184.0,91162.0,0.16220522]
[1767815108863,0.010979,91182.0,91163.0,0.10972311]
[1767815109556,0.010979,91180.0,91163.0,0.10972311]
[1767815109757,0.010979,91177.0,91164.0,0.09336]
[1767815110352,0.23837014,91180.0,91164.0,0.09336]
[1767815110652,0.010979,91178.0,91164.0,0.09336]
[1767815110852,0.1875367,91177.0,91156.0,0.06884522]
[1767815111051,0.09376782,91159.0,91152.0,0.09814063]
[1767815111254,0.09376888,91158.0,91145.0,0.09814063]
[1767815111462,0.09376782,91157.0,91144.0,0.09336]
[1767815112159,0.09376782,91163.0,91144.0,0.09336]
[1767815113171,0.10474882,91162.0,91144.0,0.09336]
[1767815114360,0.09376782,91158.0,91138.0,0.09814063]
[1767815114562,0.09376782,91158.0,91132.0,0.09336]
[1767815114563,0.09376888,91146.0,91132.0,0.09336]
[1767815114756,0.09376782,91144.0,91132.0,0.09336]
[1767815114957,0.010983,91142.0,91132.0,0.09336]
[1767815115463,0.010983,91143.0,91132.0,0.09336]
[1767815116067,0.13362332,91142.0,91132.0,0.09336]
[1767815116268,0.10475082,91143.0,91139.0,0.00219446]
[1767815116460,0.09376782,91143.0,91139.0,0.00219446]
[1767815117258,0.09376782,91143.0,91132.0,0.09336]
[1767815118361,0.010983,91142.0,91132.0,0.09336]
[1767815118564,0.09376782,91143.0,91132.0,0.09336]
[1767815118565,0.010984,91140.0,91132.0,0.09336]
[1767815119672,0.010984,91140.0,91127.0,0.08601454]
[1767815119866,0.010984,91140.0,91128.0,0.09336]
[1767815121368,0.09376782,91131.0,91117.0,0.09336]
[1767815121573,0.010983,91147.0,91113.0,0.09336]
[1767815121574,0.09376782,91127.0,91113.0,0.09336]
[1767815122071,0.010985,91124.0,91113.0,0.09336]
[1767815122267,0.10475282,91127.0,91113.0,0.09336]
[1767815123468,0.09376782,91127.0,91113.0,0.09336]
[1767815123871,0.010985,91130.0,91113.0,0.09336]
[1767815124171,0.09376782,91133.0,91113.0,0.09336]
[1767815124172,0.10475182,91133.0,91113.0,0.104347]
[1767815124381,0.010985,91131.0,91113.0,0.1710084]
[1767815124565,0.09376782,91133.0,91113.0,0.24969009]
[1767815125371,0.010985,91130.0,91113.0,0.14534309]
[1767815125573,0.010985,91130.0,91113.0,0.23870309]
[1767815125874,0.09376782,91133.0,91117.0,0.010986]
[1767815127474,0.09376782,91133.0,91120.0,0.010986]
[1767815128479,0.09376782,91133.0,91118.0,0.07868169]
[1767815129181,0.09376782,91133.0,91119.0,0.07868169]
[1767815129367,0.09376782,91133.0,91118.0,0.07868169]
[1767815130176,0.09376782,91129.0,91118.0,0.07868169]
[1767815130476,0.13362332,91130.0,91118.0,0.07868169]
[1767815130677,0.13362332,91130.0,91117.0,0.07868169]
[1767815133180,0.010985,91129.0,91117.0,0.07868169]
[1767815133876,0.010985,91129.0,91109.0,0.10033581]
[1767815133877,0.09035727,91126.0,91116.0,0.07868169]
[1767815134083,0.09035727,91120.0,91109.0,0.00219518]
[1767815134380,0.22398059,91120.0,91109.0,0.00219518]
[1767815135075,0.31620489,91130.0,91116.0,0.010986]
[1767815135275,0.09035727,91137.0,91120.0,0.13362332]
[1767815135469,0.1032073,91142.0,91125.0,0.010985]
[1767815135875,0.13362332,91140.0,91125.0,0.010985]
[1767815136076,0.010983,91143.0,91125.0,0.010985]
[1767815136478,0.010983,91141.0,91121.0,0.09788646]
[1767815136791,0.09035727,91174.0,91159.0,0.010981]
[1767815137082,0.0922243,91179.0,91159.0,0.13362332]
[1767815137283,0.09035727,91180.0,91167.0,0.01098]
[1767815137583,0.18258157,91179.0,91159.0,0.010981]
[1767815137779,0.09035727,91178.0,91159.0,0.010981]
[1767815137981,0.09035727,91178.0,91160.0,0.13362332]
[1767815138183,0.09035727,91178.0,91161.0,0.09336]
[1767815139685,0.09035727,91177.0,91161.0,0.09336]
[1767815142185,0.19355957,91183.0,91161.0,0.010981]
[1767815142387,0.18258157,91183.0,91162.0,0.09336]
[1767815142586,0.10133527,91182.0,91162.0,0.104341]
[1767815142887,0.10133527,91182.0,91162.0,0.20222746]
[1767815144885,0.10133527,91182.0,91162.0,0.200033]
[1767815146092,0.19356057,91180.0,91162.0,0.09116554]
[1767815146590,0.18258157,91179.0,91159.0,0.010981]
[1767815146793,0.09035727,91175.0,91160.0,0.09332]
[1767815146983,0.09035727,91174.0,91161.0,0.09332]
[1767815150392,0.18258157,91172.0,91152.0,0.010982]
[1767815150597,0.09336,91188.0,91153.0,0.09332]
[1767815150598,0.09035727,91167.0,91153.0,0.09332]
[1767815150788,0.09035727,91167.0,91154.0,0.09332]
[1767815151089,0.09035727,91167.0,91142.0,0.09788646]
[1767815151090,0.09035727,91167.0,91155.0,0.09332]
[1767815151792,0.18258157,91161.0,91152.0,0.09332]
[1767815151990,0.01098,91172.0,91139.0,0.05956014]
[1767815151991,0.09035727,91157.0,91139.0,0.05956014]
[1767815152192,0.09035727,91151.0,91140.0,0.09332]
[1767815152392,0.09035727,91151.0,91141.0,0.09332]
[1767815152790,0.0922243,91156.0,91141.0,0.104303]
[1767815152996,0.09035727,91158.0,91141.0,0.104303]
[1767815153388,0.09035727,91158.0,91141.0,0.09332]
[1767815153590,0.10133827,91158.0,91141.0,0.09332]
[1767815153893,0.10133827,91158.0,91142.0,0.010983]
[1767815154500,0.10133827,91158.0,91141.0,0.09332]
[1767815155100,0.010982,91156.0,91141.0,0.09332]
[1767815155900,0.09035727,91158.0,91141.0,0.104303]
[1767815156488,0.09035727,91158.0,91141.0,0.010983]
[1767815156693,0.09035727,91158.0,91142.0,0.09332]
[1767815156892,0.09035727,91158.0,91143.0,0.010983]
[1767815157299,0.09035727,91158.0,91142.0,0.104303]
[1767815157803,0.010981,91159.0,91142.0,0.20218946]
[1767815158004,0.010981,91162.0,91142.0,0.20218946]
[1767815158303,0.09035727,91163.0,91143.0,0.09788646]
[1767815158502,0.09035727,91163.0,91149.0,0.010982]
[1767815158803,0.09035727,91163.0,91143.0,0.09788646]
[1767815158998,0.010978,91189.0,91154.0,0.010982]
[1767815158999,0.01098,91173.0,91154.0,0.010982]
[1767815159303,0.18258157,91180.0,91156.0,0.09788646]
[1767815159598,0.18258157,91180.0,91157.0,0.09332]
[1767815159800,0.09035727,91180.0,91158.0,0.09788646]
[1767815159996,0.010978,91183.0,91158.0,0.09788646]
[1767815160196,0.09035727,91185.0,91168.0,0.01098]
[1767815160396,0.19355957,91185.0,91168.0,0.01098]
[1767815160598,0.09035727,91184.0,91170.0,0.01098]
[1767815161099,0.0922243,91190.0,91171.0,0.09332]
[1767815161298,0.010978,91189.0,91172.0,0.09332]
[1767815161503,0.010978,91186.0,91172.0,0.09332]
[1767815161802,0.010978,91189.0,91172.0,0.09332]
[1767815162505,0.09743187,91188.0,91172.0,0.09332]
[1767815163004,0.010978,91187.0,91172.0,0.09332]
[1767815163205,0.09743187,91188.0,91172.0,0.09332]
[1767815163606,0.10840987,91188.0,91172.0,0.09332]
[1767815164505,0.09743187,91188.0,91172.0,0.09332]
[1767815166007,0.010978,91185.0,91172.0,0.09332]
[1767815166509,0.10840987,91188.0,91172.0,0.09332]
[1767815167415,0.10840987,91188.0,91173.0,0.010979]
[1767815167709,0.09743187,91208.0,91176.0,0.09803744]
[1767815167914,0.09743187,91202.0,91187.0,0.010978]
[1767815168109,0.09743187,91201.0,91184.0,0.104298]
[1767815168315,0.09743187,91200.0,91184.0,0.104298]
[1767815168917,0.10840787,91200.0,91184.0,0.104298]
[1767815169209,0.010976,91203.0,91186.0,0.010978]
[1767815169415,0.010976,91203.0,91184.0,0.09332]
[1767815169416,0.010975,91209.0,91188.0,0.010978]
[1767815169604,0.09743187,91208.0,91188.0,0.010978]
[1767815170116,0.19655104,91208.0,91188.0,0.010978]
[1767815170305,0.010975,91207.0,91188.0,0.010978]
[1767815170904,0.09743187,91207.0,91185.0,0.10901544]
[1767815171104,0.010976,91200.0,91185.0,0.09803744]
[1767815171304,0.010976,91203.0,91185.0,0.09803744]
[1767815171518,0.010976,91206.0,91185.0,0.10901544]
[1767815171715,0.10840787,91206.0,91185.0,0.10901544]
[1767815171917,0.010976,91204.0,91185.0,0.10901544]
[1767815172515,0.09743187,91206.0,91185.0,0.10901544]
[1767815172823,0.09743187,91206.0,91187.0,0.010978]
[1767815173518,0.010976,91205.0,91187.0,0.010978]
[1767815173719,0.010976,91202.0,91185.0,0.09803744]
[1767815173908,0.010976,91201.0,91185.0,0.09803744]
[1767815174109,0.010976,91199.0,91184.0,0.09332]
[1767815175315,0.19655104,91204.0,91184.0,0.09332]
[1767815175316,0.010976,91202.0,91184.0,0.09332]
[1767815175514,0.010976,91202.0,91185.0,0.010978]
[1767815176525,0.010976,91199.0,91184.0,0.09332]
[1767815177023,0.20752704,91202.0,91186.0,0.010978]
[1767815177426,0.010976,91199.0,91184.0,0.09332]
[1767815178119,0.010976,91199.0,91184.0,0.104298]
[1767815179413,0.20752704,91202.0,91185.0,0.010978]
[1767815180224,0.09743187,91202.0,91185.0,0.010978]
[1767815180429,0.09743187,91202.0,91184.0,0.09332]
[1767815180430,0.09743187,91202.0,91193.0,0.010977]
[1767815180729,0.19655104,91211.0,91195.0,0.010977]
[1767815180934,0.19655104,91210.0,91195.0,0.010977]
[1767815181129,0.010975,91213.0,91195.0,0.010977]
[1767815181329,0.010975,91211.0,91194.0,0.09328]
[1767815181728,0.20752604,91211.0,91194.0,0.09328]
[1767815181929,0.11009317,91215.0,91198.0,0.010976]
[1767815182324,0.11009317,91215.0,91194.0,0.09328]
[1767815182325,0.010975,91213.0,91195.0,0.010977]
[1767815182731,0.19655104,91213.0,91194.0,0.09328]
[1767815183137,0.010975,91212.0,91194.0,0.09328]
[1767815184233,0.19655104,91213.0,91194.0,0.09328]
[1767815184537,0.010975,91210.0,91194.0,0.09328]
[1767815185327,0.20752604,91213.0,91195.0,0.010977]
[1767815185838,0.010975,91211.0,91194.0,0.09328]
[1767815186226,0.010975,91211.0,91195.0,0.010977]
[1767815186639,0.19655104,91208.0,91194.0,0.09328]
[1767815186828,0.19655104,91201.0,91195.0,0.09328]
[1767815187034,0.19655104,91200.0,91193.0,0.09328]
[1767815187238,0.19655104,91206.0,91193.0,0.09328]
[1767815189238,0.09743187,91204.0,91193.0,0.09328]
[1767815189438,0.19655104,91196.0,91188.0,0.09328]
[1767815189936,0.09743187,91196.0,91188.0,0.09328]
[1767815191738,0.19655104,91190.0,91174.0,0.09814063]
[1767815191942,0.0928036,91182.0,91175.0,0.09328]
[1767815192144,0.010979,91174.0,91167.0,0.09328]
[1767815192337,0.09029668,91174.0,91164.0,0.09328]
[1767815192533,0.09029668,91172.0,91162.0,0.09328]
[1767815192938,0.09029668,91172.0,91158.0,0.00013199]
[1767815193141,0.01098,91169.0,91158.0,0.00013199]
[1767815193438,0.01098,91170.0,91159.0,0.09328]
[1767815193640,0.09029668,91172.0,91159.0,0.09328]
[1767815194336,0.01098,91171.0,91159.0,0.09328]
[1767815194943,0.01098,91171.0,91160.0,0.09328]
[1767815195146,0.09029668,91172.0,91160.0,0.09328]
[1767815195342,0.10127668,91172.0,91160.0,0.09328]
[1767815195645,0.10127668,91172.0,91158.0,0.00013199]
[1767815195848,0.10127668,91172.0,91159.0,0.09328]
[1767815196041,0.10127668,91172.0,91158.0,0.00013199]
[1767815196240,0.10127668,91172.0,91159.0,0.09328]
[1767815196441,0.01098,91170.0,91159.0,0.09328]
[1767815198847,0.01098,91170.0,91160.0,0.09332]
[1767815201049,0.01098,91170.0,91158.0,0.00013199]
[1767815201343,0.09029668,91176.0,91159.0,0.09332]
[1767815201847,0.18310028,91183.0,91165.0,0.08662368]
[1767815202048,0.18310028,91183.0,91171.0,0.01098]
[1767815202250,0.18310028,91182.0,91168.0,0.01098]
[1767815202443,0.18310028,91182.0,91159.0,0.104301]
[1767815202444,0.09029668,91182.0,91166.0,0.08597881]
[1767815202643,0.09029668,91189.0,91177.0,0.010979]
[1767815202849,0.09029668,91188.0,91174.0,0.010979]
[1767815203044,0.09029668,91187.0,91174.0,0.010979]
[1767815203344,0.09029668,91186.0,91174.0,0.010979]
[1767815203541,0.09029668,91186.0,91171.0,0.01098]
[1767815203741,0.09029668,91186.0,91168.0,0.01098]
[1767815204639,0.010978,91184.0,91168.0,0.01098]
[1767815204835,0.09029668,91186.0,91170.0,0.01098]
[1767815205340,0.09029668,91186.0,91167.0,0.08597881]
[1767815205341,0.010978,91185.0,91167.0,0.09695881]
[1767815205542,0.010978,91185.0,91169.0,0.01098]
[1767815205843,0.18310028,91186.0,91171.0,0.01098]
[1767815206049,0.18310028,91186.0,91167.0,0.08597881]
[1767815206842,0.18310028,91186.0,91170.0,0.01098]
[1767815207449,0.18310028,91186.0,91173.0,0.010979]
[1767815207844,0.18310028,91186.0,91167.0,0.08597881]
[1767815208041,0.09029668,91185.0,91168.0,0.01098]
[1767815208351,0.09328,91190.0,91169.0,0.01098]
[1767815208352,0.09029668,91182.0,91169.0,0.01098]
[1767815208751,0.09029668,91182.0,91166.0,0.09332]
[1767815209050,0.0928036,91192.0,91176.0,0.010979]
[1767815209252,0.0928036,91192.0,91166.0,0.09332]
[1767815209446,0.1037806,91192.0,91177.0,0.010979]
[1767815209649,0.0928036,91189.0,91174.0,0.010979]
[1767815210250,0.0928036,91187.0,91174.0,0.010979]
[1767815210551,0.0928036,91187.0,91166.0,0.09332]
[1767815210552,0.0928036,91187.0,91167.0,0.08454619]
[1767815210743,0.0928036,91187.0,91168.0,0.08454619]
[1767815210943,0.0928036,91187.0,91168.0,0.17786619]
[1767815211142,0.0928036,91187.0,91180.0,0.010979]
[1767815211450,0.18310028,91190.0,91183.0,0.010978]
[1767815211751,0.0928036,91189.0,91170.0,0.08360715]
[1767815211946,0.0928036,91188.0,91168.0,0.19997892]
[1767815212350,0.0928036,91188.0,91168.0,0.18899892]
[1767815212548,0.0928036,91188.0,91169.0,0.09332]
[1767815212752,0.0928036,91188.0,91174.0,0.010979]
[1767815213539,0.0928036,91186.0,91169.0,0.09332]
[1767815213744,0.0928036,91186.0,91174.0,0.010979]
[1767815216248,0.0928036,91186.0,91171.0,0.01098]
[1767815217346,0.010978,91185.0,91171.0,0.01098]
[1767815218054,0.0928036,91190.0,91177.0,0.010979]
[1767815218245,0.010978,91189.0,91174.0,0.010979]
[1767815218754,0.0928036,91188.0,91175.0,0.010979]
[1767815218945,0.1037816,91188.0,91172.0,0.01098]
[1767815219953,0.18310028,91188.0,91173.0,0.010979]
[1767815220159,0.0928036,91187.0,91174.0,0.010979]
[1767815220344,0.0928036,91187.0,91171.0,0.01098]
[1767815220550,0.0928036,91187.0,91174.0,0.010979]
[1767815221857,0.010977,91191.0,91175.0,0.010979]
[1767815222054,0.010977,91191.0,91168.0,0.09567892]
[1767815222055,0.13345579,91190.0,91166.0,0.09550993]
[1767815222241,0.08324246,91178.0,91158.0,0.00013199]
[1767815222446,0.1819804,91173.0,91158.0,0.00013199]
[1767815222653,0.09873794,91173.0,91159.0,0.104301]
[1767815222856,0.09873794,91173.0,91163.0,0.010981]
[1767815223052,0.010978,91187.0,91167.0,0.01098]
[1767815223259,0.010978,91185.0,91169.0,0.01098]
[1767815223554,0.010978,91182.0,91164.0,0.07083896]
[1767815223754,0.010978,91182.0,91163.0,0.09550993]
[1767815223951,0.010979,91180.0,91165.0,0.01098]
[1767815224155,0.08324246,91180.0,91165.0,0.01098]
[1767815224557,0.09422146,91180.0,91162.0,0.010981]
[1767815224861,0.09422146,91180.0,91164.0,0.010981]
[1767815225650,0.08324246,91180.0,91161.0,0.07083896]
[1767815225852,0.08324246,91179.0,91161.0,0.07083896]
[1767815226362,0.08324246,91179.0,91166.0,0.01098]
[1767815227961,0.08324246,91179.0,91160.0,0.20151985]
[1767815228162,0.08324246,91179.0,91161.0,0.06656882]
[1767815230163,0.08324246,91179.0,91168.0,0.01098]
[1767815230854,0.08324246,91184.0,91165.0,0.0652813]
[1767815231054,0.08324246,91184.0,91166.0,0.06440635]
[1767815231254,0.010978,91184.0,91169.0,0.01098]
[1767815231454,0.08324246,91185.0,91169.0,0.01098]
[1767815231661,0.09422046,91185.0,91169.0,0.1043]
[1767815232363,0.09422046,91183.0,91169.0,0.09332]
[1767815232663,0.1819804,91175.0,91169.0,0.00436647]
[1767815232860,0.08324246,91174.0,91167.0,0.09332]
[1767815233066,0.09873794,91175.0,91167.0,0.09332]
[1767815233567,0.08324246,91170.0,91159.0,0.09801174]
[1767815233770,0.09873794,91171.0,91162.0,0.09332]
[1767815234863,0.1819804,91176.0,91162.0,0.104301]
[1767815235171,0.08324246,91184.0,91164.0,0.09091747]
[1767815235362,0.1819804,91183.0,91174.0,0.010979]
[1767815235667,0.1819804,91182.0,91171.0,0.01098]
[1767815235864,0.1819804,91182.0,91174.0,0.010979]
[1767815236166,0.08324246,91181.0,91171.0,0.01098]
[1767815237865,0.104298,91189.0,91177.0,0.010979]
[1767815237866,0.09873794,91188.0,91177.0,0.010979]
[1767815238069,0.08324246,91192.0,91173.0,0.09332]
[1767815238366,0.1819804,91192.0,91173.0,0.09332]
[1767815238667,0.08324246,91191.0,91173.0,0.09332]
[1767815239068,0.08324246,91191.0,91178.0,0.010979]
[1767815240661,0.08324246,91190.0,91178.0,0.010979]
[1767815243176,0.08324246,91189.0,91178.0,0.010979]
[1767815247175,0.08324246,91193.0,91179.0,0.13345579]
[1767815247368,0.08324246,91193.0,91181.0,0.010979]
[1767815247872,0.08324246,91193.0,91179.0,0.13345579]
[1767815248072,0.08324246,91193.0,91177.0,0.010979]
[1767815248265,0.08324246,91193.0,91187.0,0.010978]
[1767815248667,0.08324246,91193.0,91175.0,0.010979]
[1767815248974,0.08324246,91193.0,91183.0,0.010978]
[1767815249969,0.08324246,91193.0,91184.0,0.010978]
[1767815250468,0.1819804,91200.0,91188.0,0.010978]
[1767815250679,0.08324246,91198.0,91180.0,0.22437326]
[1767815250866,0.08324246,91196.0,91180.0,0.13345579]
[1767815251069,0.08324246,91196.0,91187.0,0.010978]
[1767815252471,0.17992384,91196.0,91187.0,0.010978]
[1767815252672,0.17992384,91196.0,91184.0,0.010978]
[1767815253176,0.17992384,91196.0,91187.0,0.010978]
[1767815255879,0.17992384,91196.0,91184.0,0.010978]
[1767815257180,0.07752663,91195.0,91182.0,0.010978]
[1767815257479,0.07752663,91195.0,91181.0,0.010979]
[1767815257979,0.08850363,91193.0,91175.0,0.09550993]
[1767815258275,0.09668138,91196.0,91170.0,0.15894505]
[1767815258276,0.07752663,91191.0,91179.0,0.010979]
[1767815258574,0.07752663,91191.0,91180.0,0.010979]